[Event "Modransky Cup 2025"]
[Site "Modra"]
[Date "2025.02.21"]
[Round "2.14"]
[White "Hudak, Michal"]
[Black "Vorsilka, Jiri"]
[Result "1/2-1/2"]
[Annotator "NA RC"]
[ECO "D05"]
[WhiteElo "1823"]
[BlackElo "1653"]
[PlyCount "109"]
[EventDate "2025.02.20"]
[EventCountry "SVK"]
[SourceTitle "playchess.com"]
[Source "ChessBase"]
[SourceQuality "1"]
[TimeControl "5400+30"]

1. d4 {[%emt 0:00:06]} d5 {[%emt 0:00:07]} 2. Nf3 {[%emt 0:00:08]} Nf6 {[%emt 0:00:08]} 3. e3 {[%emt 0:00:10]} e6 {[%emt 0:00:10]} 4. Bd3 {[%emt 0:00:22]} b6 {[%emt 0:00:18]} 5. Nbd2 {[%emt 0:00:33]} Bb7 {[%emt 0:00:21]} 6. O-O {[%emt 0:00:52]} Bd6 {[%emt 0:00:26]} 7. Qe2 {[%emt 0:00:41]} Nbd7 {[%emt 0:02:12]} 8. e4 {[%emt 0:00:30]} dxe4 {[%emt 0:00:24]} 9. Nxe4 {[%emt 0:00:17]} O-O {[%emt 0:00:44]} 10. Bg5 {[%emt 0:09:45]} h6 {[%emt 0:00:46]} 11. Bh4 {[%emt 0:00:30]} Be7 {[%emt 0:00:30]} 12. Nxf6+ {[%emt 0:00:30]} Nxf6 {[%emt 0:00:30]} 13. Be4 {[%emt 0:00:30]} Nd7 {[%emt 0:00:30]} 14. c3 {[%emt 0:00:30]} Bxe4 {[%emt 0:00:30]} 15. Qxe4 {[%emt 0:00:09]} Bxh4 {[%emt 0:00:16]} 16. Qxh4 {[%emt 0:01:45]} Qxh4 {[%emt 0:00:17]} 17. Nxh4 {[%emt 0:00:01]} Nf6 {[%emt 0:00:51]} 18. Nf3 {[%emt 0:00:41]} Rac8 {[%emt 0:01:07]} 19. Rad1 {[%emt 0:01:25]} Rfd8 {[%emt 0:01:46]} 20. Ne5 {[%emt 0:06:18]} c6 {[%emt 0:01:45]} 21. Rd3 {[%emt 0:10:12]} Nd7 {[%emt 0:06:42]} 22. Rfd1 {[%emt 0:01:57]} Nxe5 {[%emt 0:01:15]} 23. dxe5 {[%emt 0:00:09]} Rd5 {[%emt 0:00:04]} 24. Rxd5 {[%emt 0:01:18]} cxd5 {[%emt 0:00:08]} 25. Rd4 {[%emt 0:01:13]} g5 {[%emt 0:01:49]} 26. f4 {[%emt 0:10:17]} Kg7 {[%emt 0:00:54]} 27. f5 {[%emt 0:04:23]} exf5 {[%emt 0:00:49]} 28. Rxd5 {[%emt 0:00:03]} f4 {[%emt 0:00:25]} 29. Kf2 {[%emt 0:01:51]} Re8 {[%emt 0:04:52]} 30. Kf3 {[%emt 0:02:04]} Kg6 {[%emt 0:05:30]} 31. Rd6+ {[%emt 0:11:58]} Kf5 {[%emt 0:01:50]} 32. Rf6+ {[%emt 0:00:43]} Kxe5 {[%emt 0:00:05]} 33. Rxf7 {[%emt 0:00:25]} a5 {[%emt 0:00:15]} 34. Kg4 {[%emt 0:05:28]} Re6 {[%emt 0:02:16]} 35. h4 {[%emt 0:08:36]} gxh4 {[%emt 0:01:46]} 36. Rf5+ {[%emt 0:00:21]} Kd6 {[%emt 0:00:08]} 37. Rxf4 {[%emt 0:02:26]} Re2 {[%emt 0:00:44]} 38. Kf3 {[%emt 0:03:55]} Rxb2 {[%emt 0:00:22]} 39. Rxh4 {[%emt 0:01:27]} Rxa2 {[%emt 0:00:48]} 40. Rxh6+ {[%emt 0:01:13]} Kc5 {[%emt 0:00:48]} 41. g4 {[%emt 0:00:22]} Rd2 {[%emt 0:00:19]} 42. Ke3 {[%emt 0:01:30]} Rd7 {[%emt 0:00:15]} 43. g5 {[%emt 0:00:50]} Rg7 {[%emt 0:00:20]} 44. Kf4 {[%emt 0:00:34]} a4 {[%emt 0:00:18]} 45. Kf5 {[%emt 0:00:50]} a3 {[%emt 0:00:44]} 46. Rh2 {[%emt 0:01:54]} Kc4 {[%emt 0:00:16]} 47. Kf6 {[%emt 0:00:13]} Rxg5 {[%emt 0:00:39]} 48. Kxg5 {[%emt 0:00:07]} Kb3 {[%emt 0:00:03]} 49. Kf4 {[%emt 0:00:48]} a2 {[%emt 0:00:11]} 50. Rxa2 {[%emt 0:04:43]} Kxa2 {[%emt 0:00:06]} 51. Ke3 {[%emt 0:00:39]} Kb3 {[%emt 0:00:17]} 52. Kd4 {[%emt 0:01:41]} b5 {[%emt 0:00:09]} 53. Kd3 {[%emt 0:00:53]} Ka4 {[%emt 0:00:09]} 54. c4 {[%emt 0:02:41]} bxc4+ {[%emt 0:00:04]} 55. Kxc4 {[%emt 0:00:07]} 1/2-1/2

[Event "Modransky Cup 2025"]
[Site "Modra"]
[Date "2025.02.21"]
[Round "2.15"]
[White "Hrckova, Anna"]
[Black "Nosal, Tobias"]
[Result "0-1"]
[Annotator "NA RC"]
[ECO "C07"]
[WhiteElo "1655"]
[BlackElo "1807"]
[PlyCount "47"]
[EventDate "2025.02.20"]
[EventCountry "SVK"]
[SourceTitle "playchess.com"]
[Source "ChessBase"]
[SourceQuality "1"]
[TimeControl "5400+30"]

1. e4 {[%emt 0:00:06]} e6 {[%emt 0:00:09]} 2. d4 {[%emt 0:00:02]} d5 {[%emt 0:00:06]} 3. Nd2 {[%emt 0:00:05]} c5 {[%emt 0:00:05]} 4. Ngf3 {[%emt 0:01:14]} cxd4 {[%emt 0:00:12]} 5. exd5 {[%emt 0:01:03]} Qxd5 {[%emt 0:00:14]} 6. Bc4 {[%emt 0:00:11]} Qd7 {[%emt 0:00:05]} 7. O-O {[%emt 0:01:24]} Nc6 {[%emt 0:00:17]} 8. Nb3 {[%emt 0:00:13]} Nf6 {[%emt 0:00:07]} 9. Nbxd4 {[%emt 0:00:36]} Nxd4 {[%emt 0:00:22]} 10. Nxd4 {[%emt 0:00:09]} a6 {[%emt 0:00:15]} 11. Bb3 {[%emt 0:01:05]} Bc5 {[%emt 0:03:50]} 12. c3 {[%emt 0:02:23]} b5 {[%emt 0:04:17]} 13. Bg5 {[%emt 0:02:34]} Bxd4 {[%emt 0:03:30]} 14. cxd4 {[%emt 0:01:51]} Bb7 {[%emt 0:02:40]} 15. Re1 {[%emt 0:04:35]} Rd8 {[%emt 0:01:26]} 16. Bxf6 {[%emt 0:02:22]} gxf6 {[%emt 0:00:03]} 17. Qh5 {[%emt 0:04:31]} Bd5 {[%emt 0:18:16]} 18. Bc2 {[%emt 0:14:53]} Ke7 {[%emt 0:16:13]} 19. Qh4 {[%emt 0:06:51]} Rdg8 {[%emt 0:12:17]} 20. g3 {[%emt 0:01:11]} h5 {[%emt 0:07:15]} 21. Bf5 {[%emt 0:03:52]} Rg5 {[%emt 0:15:17]} 22. Bh3 {[%emt 0:00:59]} Bc6 {[%emt 0:03:20]} 23. Rac1 {[%emt 0:02:48]} Qd5 {[%emt 0:08:04]} 24. Qf4 {[%emt 0:01:15]} 0-1

[Event "Modransky Cup 2025"]
[Site "Modra"]
[Date "2025.02.21"]
[Round "2.16"]
[White "Sekera, Timotej"]
[Black "Chojnacki, Kevin"]
[Result "1-0"]
[Annotator "NA RC"]
[ECO "B03"]
[WhiteElo "1802"]
[BlackElo "1643"]
[PlyCount "103"]
[EventDate "2025.02.20"]
[EventCountry "SVK"]
[SourceTitle "playchess.com"]
[Source "ChessBase"]
[SourceQuality "1"]
[TimeControl "5400+30"]

1. e4 {[%emt 0:00:08]} Nf6 {[%emt 0:00:14]} 2. e5 {[%emt 0:00:13]} Nd5 {[%emt 0:00:02]} 3. d4 {[%emt 0:00:27]} Nb6 {[%emt 0:00:05]} 4. Nf3 {[%emt 0:10:23]} d5 {[%emt 0:00:24]} 5. Bd3 {[%emt 0:02:00]} Bg4 {[%emt 0:00:10]} 6. a4 {[%emt 0:06:03]} a5 {[%emt 0:00:12]} 7. Na3 {[%emt 0:11:03]} e6 {[%emt 0:00:29]} 8. h3 {[%emt 0:02:00]} Bxf3 {[%emt 0:00:11]} 9. Qxf3 {[%emt 0:00:15]} c6 {[%emt 0:10:41]} 10. b3 {[%emt 0:03:27]} Na6 {[%emt 0:03:33]} 11. c3 {[%emt 0:00:48]} Nc7 {[%emt 0:06:03]} 12. Nc2 {[%emt 0:03:59]} c5 {[%emt 0:01:21]} 13. Ba3 {[%emt 0:02:36]} Nd7 {[%emt 0:02:20]} 14. Qg3 {[%emt 0:06:30]} g6 {[%emt 0:02:26]} 15. O-O {[%emt 0:09:23]} Rb8 {[%emt 0:00:45]} 16. dxc5 {[%emt 0:04:45]} Nxc5 {[%emt 0:01:19]} 17. Nd4 {[%emt 0:00:10]} Be7 {[%emt 0:05:37]} 18. Bc2 {[%emt 0:09:31]} Nd7 {[%emt 0:02:39]} 19. Bxe7 {[%emt 0:01:49]} Qxe7 {[%emt 0:00:21]} 20. f4 {[%emt 0:00:11]} Rc8 {[%emt 0:09:29]} 21. f5 {[%emt 0:01:44]} exf5 {[%emt 0:05:11]} 22. Bxf5 {[%emt 0:01:24]} Ne6 {[%emt 0:03:50]} 23. Bxe6 {[%emt 0:01:03]} fxe6 {[%emt 0:00:13]} 24. Nb5 {[%emt 0:00:12]} Qc5+ {[%emt 0:02:20]} 25. Kh1 {[%emt 0:01:47]} Rc6 {[%emt 0:03:18]} 26. Nd6+ {[%emt 0:01:40]} Rxd6 {[%emt 0:00:01]} 27. exd6 {[%emt 0:00:10]} e5 {[%emt 0:01:09]} 28. Qf2 {[%emt 0:01:09]} Qxd6 {[%emt 0:00:27]} 29. Qf7+ {[%emt 0:00:50]} Kd8 {[%emt 0:00:31]} 30. Rad1 {[%emt 0:00:22]} Rf8 {[%emt 0:00:54]} 31. Qxh7 {[%emt 0:00:27]} Re8 {[%emt 0:05:18]} 32. Qh4+ {[%emt 0:05:25]} Kc7 {[%emt 0:00:32]} 33. Qg3 {[%emt 0:00:12]} Re7 {[%emt 0:01:22]} 34. Qd3 {[%emt 0:00:45]} Nc5 {[%emt 0:03:12]} 35. Qxd5 {[%emt 0:00:22]} Qxd5 {[%emt 0:00:04]} 36. Rxd5 {[%emt 0:00:12]} Nxb3 {[%emt 0:00:02]} 37. Rb5 {[%emt 0:00:36]} Nd2 {[%emt 0:00:37]} 38. Rd1 {[%emt 0:00:52]} Ne4 {[%emt 0:00:16]} 39. Re1 {[%emt 0:00:18]} Nf2+ {[%emt 0:00:27]} 40. Kg1 {[%emt 0:00:11]} Nd3 {[%emt 0:00:30]} 41. Re3 {[%emt 0:00:16]} e4 {[%emt 0:00:49]} 42. Rxa5 {[%emt 0:00:36]} Kb6 {[%emt 0:00:17]} 43. Rd5 {[%emt 0:00:52]} Nf4 {[%emt 0:00:41]} 44. Rd4 {[%emt 0:00:45]} g5 {[%emt 0:04:51]} 45. Rdxe4 {[%emt 0:00:40]} Rd7 {[%emt 0:00:07]} 46. Rd4 {[%emt 0:00:15]} Rc7 {[%emt 0:00:29]} 47. Rb4+ {[%emt 0:01:17]} Ka6 {[%emt 0:00:32]} 48. Rb5 {[%emt 0:00:54]} Rxc3 {[%emt 0:00:34]} 49. Rxc3 {[%emt 0:00:18]} Ne2+ {[%emt 0:00:04]} 50. Kf2 {[%emt 0:00:11]} Nxc3 {[%emt 0:00:06]} 51. Rxg5 {[%emt 0:00:08]} Nxa4 {[%emt 0:00:03]} 52. h4 {[%emt 0:00:43]} 1-0

[Event "Modransky Cup 2025"]
[Site "Modra"]
[Date "2025.02.21"]
[Round "2.17"]
[White "Soldan, Jan"]
[Black "Pikulik, Roman"]
[Result "1-0"]
[Annotator "NA"]
[ECO "B34"]
[WhiteElo "1756"]
[BlackElo "1595"]
[PlyCount "80"]
[EventDate "2025.02.20"]
[EventCountry "SVK"]
[SourceTitle "playchess.com"]
[Source "ChessBase"]
[SourceQuality "1"]
[TimeControl "5400+30"]

1. e4 {[%emt 0:00:08]} c5 {[%emt 0:00:12]} 2. Nf3 {[%emt 0:00:05]} Nc6 {[%emt 0:01:13]} 3. d4 {[%emt 0:00:05]} cxd4 {[%emt 0:00:10]} 4. Nxd4 {[%emt 0:00:04]} g6 {[%emt 0:00:09]} 5. Nc3 {[%emt 0:00:21]} Bg7 {[%emt 0:00:10]} 6. Be3 {[%emt 0:00:16]} Nf6 {[%emt 0:00:14]} 7. Nxc6 {[%emt 0:00:55]} bxc6 {[%emt 0:00:12]} 8. e5 {[%emt 0:00:42]} Nd5 {[%emt 0:01:38]} 9. Nxd5 {[%emt 0:01:12]} cxd5 {[%emt 0:00:30]} 10. Qxd5 {[%emt 0:00:30]} Rb8 {[%emt 0:06:46]} 11. Bc4 {[%emt 0:02:45]} O-O {[%emt 0:00:25]} 12. O-O {[%emt 0:02:03]} e6 {[%emt 0:06:45]} 13. Qd4 {[%emt 0:00:54]} Rb4 {[%emt 0:04:04]} 14. Qc5 {[%emt 0:07:15]} a5 {[%emt 0:00:54]} 15. a3 {[%emt 0:04:15]} Rb8 {[%emt 0:04:36]} 16. Rab1 {[%emt 0:05:30]} Bb7 {[%emt 0:02:54]} 17. Bb3 {[%emt 0:07:55]} Bc6 {[%emt 0:11:05]} 18. a4 {[%emt 0:01:29]} Rc8 {[%emt 0:01:24]} 19. Qd4 {[%emt 0:01:19]} d5 {[%emt 0:01:28]} 20. f4 {[%emt 0:02:23]} Qd7 {[%emt 0:04:30]} 21. Rf3 {[%emt 0:02:07]} f5 {[%emt 0:04:00]} 22. h4 {[%emt 0:04:51]} h5 {[%emt 0:03:10]} 23. Bd2 {[%emt 0:04:07]} Ra8 {[%emt 0:01:24]} 24. Rc3 {[%emt 0:00:21]} Rfc8 {[%emt 0:01:37]} 25. Rc5 {[%emt 0:02:41]} Bf8 {[%emt 0:00:18]} 26. Rxa5 {[%emt 0:03:25]} Rxa5 {[%emt 0:06:49]} 27. Bxa5 {[%emt 0:00:13]} Qb7 {[%emt 0:03:04]} 28. Kh1 {[%emt 0:03:50]} Ra8 {[%emt 0:02:27]} 29. Bc3 {[%emt 0:00:47]} Bxa4 {[%emt 0:01:08]} 30. Bxa4 {[%emt 0:00:15]} Qc7 {[%emt 0:01:59]} 31. Bb3 {[%emt 0:00:46]} Kf7 {[%emt 0:00:40]} 32. Rd1 {[%emt 0:02:41]} Be7 {[%emt 0:01:17]} 33. g3 {[%emt 0:00:44]} Bc5 {[%emt 0:00:15]} 34. Qd2 {[%emt 0:00:46]} Rd8 {[%emt 0:00:09]} 35. Bb4 {[%emt 0:01:26]} Bb6 {[%emt 0:00:45]} 36. Bd6 {[%emt 0:01:07]} Qc6 {[%emt 0:01:47]} 37. Qg2 {[%emt 0:02:18]} Bc7 {[%emt 0:01:08]} 38. Rxd5 {[%emt 0:03:14]} Rxd6 {[%emt 0:01:03]} 39. exd6 {[%emt 0:00:01]} Bxd6 {[%emt 0:27:41]} 40. Rxd6 {[%emt 0:34:44]} Qxd6 {[%emt 0:00:30]} 1-0

[Event "Modransky Cup 2025"]
[Site "Modra"]
[Date "2025.02.21"]
[Round "2.18"]
[White "Banas, Kamil"]
[Black "Wolak, Jan"]
[Result "0-1"]
[Annotator "NA RC"]
[ECO "B90"]
[WhiteElo "1651"]
[BlackElo "1762"]
[PlyCount "58"]
[EventDate "2025.02.20"]
[EventCountry "SVK"]
[SourceTitle "playchess.com"]
[Source "ChessBase"]
[SourceQuality "1"]
[TimeControl "5400+30"]

1. e4 {[%emt 0:04:38]} c5 {[%emt 0:00:07]} 2. Nf3 {[%emt 0:00:17]} d6 {[%emt 0:00:05]} 3. d4 {[%emt 0:00:04]} cxd4 {[%emt 0:00:05]} 4. Nxd4 {[%emt 0:00:05]} Nf6 {[%emt 0:00:06]} 5. Nc3 {[%emt 0:00:05]} a6 {[%emt 0:00:04]} 6. Be3 {[%emt 0:00:19]} e5 {[%emt 0:00:32]} 7. Nb3 {[%emt 0:00:13]} Be6 {[%emt 0:00:51]} 8. f3 {[%emt 0:02:04]} Be7 {[%emt 0:00:40]} 9. Qd2 {[%emt 0:00:39]} O-O {[%emt 0:00:11]} 10. O-O-O {[%emt 0:00:13]} Qc7 {[%emt 0:01:56]} 11. h4 {[%emt 0:06:00]} Rc8 {[%emt 0:01:52]} 12. g4 {[%emt 0:03:02]} d5 {[%emt 0:04:27]} 13. exd5 {[%emt 0:05:10]} Nxd5 {[%emt 0:01:04]} 14. Nxd5 {[%emt 0:04:53]} Bxd5 {[%emt 0:00:07]} 15. Be2 {[%emt 0:10:42]} a5 {[%emt 0:05:20]} 16. Kb1 {[%emt 0:03:40]} a4 {[%emt 0:09:20]} 17. Na1 {[%emt 0:02:51]} Bc4 {[%emt 0:02:07]} 18. Bxc4 {[%emt 0:05:55]} Qxc4 {[%emt 0:00:11]} 19. g5 {[%emt 0:03:24]} Na6 {[%emt 0:05:06]} 20. h5 {[%emt 0:10:48]} Nb4 {[%emt 0:05:15]} 21. b3 {[%emt 0:01:11]} axb3 {[%emt 0:07:23]} 22. cxb3 {[%emt 0:00:31]} Qe6 {[%emt 0:10:19]} 23. a4 {[%emt 0:03:41]} Qf5+ {[%emt 0:26:33]} 24. Kb2 {[%emt 0:00:11]} b5 {[%emt 0:00:01]} 25. Rh2 {[%emt 0:10:21]} bxa4 {[%emt 0:01:22]} 26. bxa4 {[%emt 0:00:11]} Rxa4 {[%emt 0:00:35]} 27. Kb3 {[%emt 0:00:30]} Qe6+ {[%emt 0:03:26]} 28. Kxa4 {[%emt 0:00:39]} Ra8+ {[%emt 0:00:10]} 29. Kb5 {[%emt 0:01:42]} Qc6# {[%emt 0:00:11]} 0-1

[Event "Modransky Cup 2025"]
[Site "Modra"]
[Date "2025.02.21"]
[Round "2.19"]
[White "Gonda, Jan"]
[Black "Ronaj, Filip"]
[Result "1/2-1/2"]
[Annotator "NA"]
[ECO "E82"]
[WhiteElo "1633"]
[BlackElo "1746"]
[PlyCount "83"]
[EventDate "2025.02.20"]
[EventCountry "SVK"]
[SourceTitle "playchess.com"]
[Source "ChessBase"]
[SourceQuality "1"]
[TimeControl "5400+30"]

1. d4 {[%emt 0:00:12]} Nf6 {[%emt 0:00:11]} 2. c4 {[%emt 0:00:10]} d6 {[%emt 0:00:15]} 3. Nc3 {[%emt 0:00:22]} g6 {[%emt 0:00:18]} 4. e4 {[%emt 0:00:12]} Bg7 {[%emt 0:00:18]} 5. f3 {[%emt 0:01:04]} O-O {[%emt 0:00:13]} 6. Be3 {[%emt 0:00:06]} b6 {[%emt 0:00:59]} 7. Bd3 {[%emt 0:00:27]} c5 {[%emt 0:00:26]} 8. d5 {[%emt 0:00:19]} a6 {[%emt 0:00:45]} 9. Nge2 {[%emt 0:00:16]} Bd7 {[%emt 0:00:43]} 10. O-O {[%emt 0:00:27]} Qc7 {[%emt 0:00:12]} 11. Qc2 {[%emt 0:01:29]} Qb7 {[%emt 0:00:17]} 12. Rab1 {[%emt 0:05:17]} b5 {[%emt 0:01:51]} 13. b3 {[%emt 0:01:37]} b4 {[%emt 0:02:14]} 14. Nd1 {[%emt 0:00:10]} e6 {[%emt 0:00:12]} 15. Bf2 {[%emt 0:03:22]} a5 {[%emt 0:00:30]} 16. h3 {[%emt 0:02:38]} Qc8 {[%emt 0:01:04]} 17. Kh1 {[%emt 0:02:12]} a4 {[%emt 0:00:17]} 18. Bg3 {[%emt 0:04:05]} e5 {[%emt 0:01:17]} 19. Ng1 {[%emt 0:02:00]} Nh5 {[%emt 0:01:03]} 20. Bh2 {[%emt 0:00:33]} Bh6 {[%emt 0:00:27]} 21. g4 {[%emt 0:02:31]} Nf4 {[%emt 0:01:13]} 22. Bxf4 {[%emt 0:00:23]} Bxf4 {[%emt 0:00:06]} 23. Ne2 {[%emt 0:00:30]} Bg5 {[%emt 0:07:37]} 24. f4 {[%emt 0:00:31]} Bf6 {[%emt 0:01:12]} 25. f5 {[%emt 0:01:41]} Kg7 {[%emt 0:00:45]} 26. Rg1 {[%emt 0:01:14]} Bh4 {[%emt 0:00:47]} 27. Ng3 {[%emt 0:01:14]} axb3 {[%emt 0:02:03]} 28. axb3 {[%emt 0:00:27]} Na6 {[%emt 0:00:20]} 29. Ne3 {[%emt 0:03:41]} Qd8 {[%emt 0:00:53]} 30. Kh2 {[%emt 0:00:34]} Qg5 {[%emt 0:01:06]} 31. Ng2 {[%emt 0:05:20]} Bxg3+ {[%emt 0:00:39]} 32. Kxg3 {[%emt 0:00:14]} h5 {[%emt 0:02:06]} 33. Qe2 {[%emt 0:03:59]} h4+ {[%emt 0:07:02]} 34. Kh2 {[%emt 0:01:08]} Rh8 {[%emt 0:01:06]} 35. Qe3 {[%emt 0:01:21]} Qxe3 {[%emt 0:00:57]} 36. Nxe3 {[%emt 0:00:30]} g5 {[%emt 0:00:52]} 37. Rg2 {[%emt 0:03:07]} Nc7 {[%emt 0:00:21]} 38. Rgb2 {[%emt 0:05:39]} Ra3 {[%emt 0:01:20]} 39. Nc2 {[%emt 0:00:36]} Ra6 {[%emt 0:00:59]} 40. Ra1 {[%emt 0:00:28]} Rxa1 {[%emt 0:00:40]} 41. Nxa1 {[%emt 0:00:17]} Ra8 {[%emt 0:00:02]} 42. Nc2 {[%emt 0:00:34]} 1/2-1/2

[Event "Modransky Cup 2025"]
[Site "Modra"]
[Date "2025.02.21"]
[Round "2.21"]
[White "Segeda, Milos"]
[Black "Veres, Alex"]
[Result "0-1"]
[Annotator "NA"]
[ECO "B30"]
[WhiteElo "1519"]
[BlackElo "1699"]
[PlyCount "70"]
[EventDate "2025.02.20"]
[EventCountry "SVK"]
[SourceTitle "playchess.com"]
[Source "ChessBase"]
[SourceQuality "1"]
[TimeControl "5400+30"]

1. e4 {[%emt 0:00:09]} c5 {[%emt 0:00:11]} 2. Nc3 {[%emt 0:00:07]} Nc6 {[%emt 0:00:09]} 3. Bc4 {[%emt 0:00:27]} Nf6 {[%emt 0:00:34]} 4. d3 {[%emt 0:01:04]} e6 {[%emt 0:01:50]} 5. Nf3 {[%emt 0:01:15]} d5 {[%emt 0:01:01]} 6. exd5 {[%emt 0:03:03]} exd5 {[%emt 0:00:10]} 7. Bb5 {[%emt 0:02:50]} Bg4 {[%emt 0:03:00]} 8. O-O {[%emt 0:01:00]} Be7 {[%emt 0:00:43]} 9. Re1 {[%emt 0:01:15]} O-O {[%emt 0:00:16]} 10. Bxc6 {[%emt 0:00:23]} bxc6 {[%emt 0:00:08]} 11. h3 {[%emt 0:01:10]} Bh5 {[%emt 0:00:58]} 12. g4 {[%emt 0:01:36]} Bg6 {[%emt 0:00:47]} 13. Ne5 {[%emt 0:01:31]} Bd6 {[%emt 0:11:09]} 14. Nxc6 {[%emt 0:08:59]} Qc7 {[%emt 0:00:35]} 15. Ne7+ {[%emt 0:00:48]} Bxe7 {[%emt 0:00:23]} 16. Bg5 {[%emt 0:03:16]} d4 {[%emt 0:01:55]} 17. Bxf6 {[%emt 0:03:45]} Bxf6 {[%emt 0:00:09]} 18. Nd5 {[%emt 0:02:00]} Qd6 {[%emt 0:01:49]} 19. Qf3 {[%emt 0:01:09]} Rfe8 {[%emt 0:01:37]} 20. b3 {[%emt 0:00:55]} Be5 {[%emt 0:00:59]} 21. Kg2 {[%emt 0:01:16]} Rad8 {[%emt 0:00:10]} 22. c4 {[%emt 0:04:52]} dxc3 {[%emt 0:00:22]} 23. d4 {[%emt 0:06:15]} cxd4 {[%emt 0:01:20]} 24. a3 {[%emt 0:06:25]} Qxd5 {[%emt 0:00:11]} 25. Qxd5 {[%emt 0:00:08]} Rxd5 {[%emt 0:00:06]} 26. f4 {[%emt 0:01:20]} d3 {[%emt 0:00:26]} 27. f5 {[%emt 0:07:06]} d2 {[%emt 0:00:14]} 28. fxg6 {[%emt 0:02:30]} dxe1=Q {[%emt 0:02:11]} 29. gxf7+ {[%emt 0:00:31]} Kxf7 {[%emt 0:00:30]} 30. Rxe1 {[%emt 0:00:37]} c2 {[%emt 0:00:06]} 31. Rf1+ {[%emt 0:04:20]} Kg6 {[%emt 0:00:14]} 32. h4 {[%emt 0:00:40]} Bb2 {[%emt 0:00:51]} 33. h5+ {[%emt 0:02:24]} Kg5 {[%emt 0:00:10]} 34. Rf5+ {[%emt 0:02:16]} Rxf5 {[%emt 0:00:06]} 35. gxf5 {[%emt 0:00:16]} c1=Q {[%emt 0:00:09]} 0-1

[Event "Modransky Cup 2025"]
[Site "Modra"]
[Date "2025.02.21"]
[Round "2.22"]
[White "Kolibik, Jan"]
[Black "Vernerova, Ema"]
[Result "1-0"]
[Annotator "NA RC"]
[ECO "A25"]
[WhiteElo "1683"]
[BlackElo "1428"]
[PlyCount "77"]
[EventDate "2025.02.20"]
[EventCountry "SVK"]
[SourceTitle "playchess.com"]
[Source "ChessBase"]
[SourceQuality "1"]
[TimeControl "5400+30"]

1. c4 {[%emt 0:00:14]} e5 {[%emt 0:01:15]} 2. g3 {[%emt 0:00:18]} Nc6 {[%emt 0:01:55]} 3. Bg2 {[%emt 0:00:37]} Bc5 {[%emt 0:01:01]} 4. e3 {[%emt 0:00:35]} d6 {[%emt 0:00:18]} 5. Nc3 {[%emt 0:02:51]} Be6 {[%emt 0:01:28]} 6. d3 {[%emt 0:00:21]} Qd7 {[%emt 0:01:01]} 7. Nge2 {[%emt 0:01:10]} Bh3 {[%emt 0:06:30]} 8. O-O {[%emt 0:00:46]} O-O-O {[%emt 0:01:27]} 9. Na4 {[%emt 0:02:30]} Bxg2 {[%emt 0:03:03]} 10. Kxg2 {[%emt 0:00:33]} f5 {[%emt 0:04:48]} 11. a3 {[%emt 0:00:59]} a6 {[%emt 0:01:14]} 12. b4 {[%emt 0:01:54]} Ba7 {[%emt 0:01:39]} 13. Bb2 {[%emt 0:00:55]} d5 {[%emt 0:02:19]} 14. Qc2 {[%emt 0:02:05]} e4 {[%emt 0:04:43]} 15. d4 {[%emt 0:00:53]} b5 {[%emt 0:03:44]} 16. cxb5 {[%emt 0:01:32]} axb5 {[%emt 0:00:21]} 17. Nc5 {[%emt 0:01:13]} Bxc5 {[%emt 0:01:26]} 18. Qxc5 {[%emt 0:01:15]} Qd6 {[%emt 0:04:27]} 19. Qxb5 {[%emt 0:00:29]} Nb8 {[%emt 0:01:00]} 20. Rfc1 {[%emt 0:00:45]} Qd7 {[%emt 0:02:59]} 21. Rc5 {[%emt 0:02:21]} Qxb5 {[%emt 0:00:51]} 22. Rxb5 {[%emt 0:00:17]} Rd7 {[%emt 0:00:43]} 23. Rc1 {[%emt 0:01:36]} Nf6 {[%emt 0:00:42]} 24. Ra5 {[%emt 0:01:44]} Ne8 {[%emt 0:02:18]} 25. Nf4 {[%emt 0:01:24]} Nd6 {[%emt 0:00:20]} 26. Rxd5 {[%emt 0:00:55]} g5 {[%emt 0:03:00]} 27. Ne6 {[%emt 0:04:05]} Na6 {[%emt 0:04:20]} 28. Nc5 {[%emt 0:01:37]} Nxc5 {[%emt 0:00:33]} 29. dxc5 {[%emt 0:00:15]} Nb5 {[%emt 0:00:48]} 30. Rxd7 {[%emt 0:00:15]} Kxd7 {[%emt 0:00:02]} 31. Bxh8 {[%emt 0:00:14]} Nxa3 {[%emt 0:00:27]} 32. Bb2 {[%emt 0:02:30]} Nb5 {[%emt 0:00:20]} 33. Rd1+ {[%emt 0:00:20]} Kc6 {[%emt 0:00:15]} 34. Rd8 {[%emt 0:00:25]} h5 {[%emt 0:00:52]} 35. Rg8 {[%emt 0:01:20]} h4 {[%emt 0:00:38]} 36. Rxg5 {[%emt 0:00:17]} hxg3 {[%emt 0:00:08]} 37. Kxg3 {[%emt 0:00:25]} Kd5 {[%emt 0:01:37]} 38. Rxf5+ {[%emt 0:01:12]} Kc4 {[%emt 0:00:27]} 39. h4 {[%emt 0:00:52]} 1-0